[Event "*** Titled Tuesday Blitz"]
[Site "Chess.com"]
[Date "2021.02.09"]
[Round "7"]
[White "Anton_Demchenko"]
[Black "SaqoChess_Twitch"]
[Result "1-0"]
[WhiteElo "2843"]
[BlackElo "2549"]
[TimeControl "180+1"]
[EndTime "11:17:25 PST"]
[Termination "Anton_Demchenko won by resignation"]

1. e4 {[%clk 0:03:00.9]} 1... c5 {[%clk 0:02:59.7]} 2. Nf3 {[%clk 0:03:00.8]}
2... d6 {[%clk 0:02:59.9]} 3. d4 {[%clk 0:03:00.1]} 3... cxd4 {[%clk 0:03:00.8]}
4. Qxd4 {[%clk 0:03:00.5]} 4... Nf6 {[%clk 0:03:01.5]} 5. Nc3 {[%clk 0:03:00]}
5... Nc6 {[%clk 0:03:02.1]} 6. Qe3 {[%clk 0:03:00.6]} 6... g6 {[%clk 0:03:01.3]}
7. h3 {[%clk 0:02:59.4]} 7... Bg7 {[%clk 0:03:01.6]} 8. Bc4 {[%clk 0:03:00]}
8... O-O {[%clk 0:03:01.8]} 9. O-O {[%clk 0:03:00.6]} 9... Bd7 {[%clk
0:02:59.3]} 10. Rd1 {[%clk 0:03:00.1]} 10... Qc8 {[%clk 0:02:57.8]} 11. Bb3
{[%clk 0:02:59.4]} 11... Bxh3 {[%clk 0:02:52.3]} 12. gxh3 {[%clk 0:02:56.5]}
12... Qxh3 {[%clk 0:02:53.2]} 13. Nh2 {[%clk 0:02:42.7]} 13... Qh5 {[%clk
0:02:50.7]} 14. Qg5 {[%clk 0:02:40.2]} 14... Qh3 {[%clk 0:02:47.3]} 15. Rd3
{[%clk 0:02:26.8]} 15... Qc8 {[%clk 0:02:39.8]} 16. f4 {[%clk 0:02:17.3]} 16...
h6 {[%clk 0:02:34.4]} 17. Qxg6 {[%clk 0:02:04.3]} 17... d5 {[%clk 0:02:31.8]}
18. Qg2 {[%clk 0:01:59.9]} 18... dxe4 {[%clk 0:02:21.4]} 19. Rg3 {[%clk
0:01:59.3]} 19... Nh5 {[%clk 0:02:19.6]} 20. Rh3 {[%clk 0:01:51.2]} 20... Qf5
{[%clk 0:02:17.9]} 21. Ng4 {[%clk 0:01:36.1]} 21... Kh8 {[%clk 0:02:13.3]} 22.
Ne3 {[%clk 0:01:34.3]} 22... Bd4 {[%clk 0:02:07.8]} 23. Kh1 {[%clk 0:01:21.8]}
23... Bxe3 {[%clk 0:02:04.3]} 24. Bxe3 {[%clk 0:01:22.7]} 24... Rg8 {[%clk
0:02:03.8]} 25. Qh2 {[%clk 0:01:22.9]} 25... Nf6 {[%clk 0:01:35]} 26. Rxh6+
{[%clk 0:00:49.5]} 26... Nh7 {[%clk 0:01:33.5]} 27. Bd5 {[%clk 0:00:35.2]} 27...
Rg6 {[%clk 0:01:16.5]} 28. Rxh7+ {[%clk 0:00:32]} 28... Kg8 {[%clk 0:01:13.9]}
29. Bxe4 {[%clk 0:00:29.6]} 29... Qg4 {[%clk 0:01:03.9]} 30. Rg1 {[%clk
0:00:20.8]} 1-0

[Event "*** Titled Tuesday Blitz"]
[Site "Chess.com"]
[Date "2021.02.09"]
[Round "7"]
[White "SanchezKelvin"]
[Black "PotapovaM"]
[Result "0-1"]
[WhiteElo "2440"]
[BlackElo "2632"]
[TimeControl "180+1"]
[EndTime "11:17:26 PST"]
[Termination "PotapovaM won by resignation"]

1. e4 {[%clk 0:02:56.6]} 1... c5 {[%clk 0:02:59.8]} 2. Nf3 {[%clk 0:02:56.2]}
2... d6 {[%clk 0:03:00.4]} 3. d4 {[%clk 0:02:55.6]} 3... cxd4 {[%clk 0:03:01.3]}
4. Nxd4 {[%clk 0:02:47.8]} 4... Nf6 {[%clk 0:03:01.5]} 5. Nc3 {[%clk 0:02:24.4]}
5... a6 {[%clk 0:03:01.6]} 6. f3 {[%clk 0:02:21.3]} 6... e5 {[%clk 0:03:01.1]}
7. Nb3 {[%clk 0:02:20.7]} 7... Be6 {[%clk 0:03:01.5]} 8. Be3 {[%clk 0:02:21.2]}
8... Be7 {[%clk 0:03:02.1]} 9. Qd2 {[%clk 0:02:21.1]} 9... O-O {[%clk
0:03:02.6]} 10. Nd5 {[%clk 0:02:18]} 10... Nxd5 {[%clk 0:02:58]} 11. exd5 {[%clk
0:02:18.9]} 11... Bf5 {[%clk 0:02:58.6]} 12. c4 {[%clk 0:02:17]} 12... Nd7
{[%clk 0:02:56.2]} 13. Na5 {[%clk 0:02:14.8]} 13... Qc7 {[%clk 0:02:48.6]} 14.
b4 {[%clk 0:02:07]} 14... Bf6 {[%clk 0:02:41.8]} 15. Rc1 {[%clk 0:02:05.1]}
15... Rfe8 {[%clk 0:02:26.6]} 16. Be2 {[%clk 0:02:02.2]} 16... Bd8 {[%clk
0:02:10.6]} 17. O-O {[%clk 0:01:59.6]} 17... Qb8 {[%clk 0:02:08.2]} 18. Nb3
{[%clk 0:01:59.4]} 18... b6 {[%clk 0:02:01.1]} 19. Rfe1 {[%clk 0:01:52.3]} 19...
a5 {[%clk 0:01:56.2]} 20. a3 {[%clk 0:01:42]} 20... axb4 {[%clk 0:01:54.4]} 21.
axb4 {[%clk 0:01:42.9]} 21... Ra3 {[%clk 0:01:48.5]} 22. Qb2 {[%clk 0:01:39]}
22... Ra8 {[%clk 0:01:36.9]} 23. Ra1 {[%clk 0:01:36.9]} 23... Bf6 {[%clk
0:01:36.1]} 24. Rxa8 {[%clk 0:01:09.9]} 24... Qxa8 {[%clk 0:01:37]} 25. g4
{[%clk 0:01:09.2]} 25... Bg6 {[%clk 0:01:36.4]} 26. g5 {[%clk 0:01:08.9]} 26...
Be7 {[%clk 0:01:32.1]} 27. Ra1 {[%clk 0:01:03.3]} 27... Qc8 {[%clk 0:01:31.5]}
28. Ra7 {[%clk 0:00:54.2]} 28... f6 {[%clk 0:01:28.3]} 29. Qd2 {[%clk
0:00:52.3]} 29... fxg5 {[%clk 0:01:24.6]} 30. Bxg5 {[%clk 0:00:51.8]} 30... Nf6
{[%clk 0:01:25.2]} 31. Qe3 {[%clk 0:00:45.6]} 31... Qf5 {[%clk 0:01:21.7]} 32.
Bxf6 {[%clk 0:00:20.6]} 32... Bxf6 {[%clk 0:01:21.3]} 33. Qc3 {[%clk 0:00:17.7]}
33... e4 {[%clk 0:01:17.8]} 34. Qc2 {[%clk 0:00:14.3]} 34... Qg5+ {[%clk
0:01:14.2]} 35. Kf2 {[%clk 0:00:13]} 35... exf3 {[%clk 0:01:13.1]} 0-1

[Event "*** Titled Tuesday Blitz"]
[Site "Chess.com"]
[Date "2021.02.09"]
[Round "7"]
[White "KafkaesqueKnight"]
[Black "SirStrateg"]
[Result "1-0"]
[WhiteElo "2205"]
[BlackElo "2567"]
[TimeControl "180+1"]
[EndTime "11:17:27 PST"]
[Termination "KafkaesqueKnight won by resignation"]

1. d4 {[%clk 0:03:00.9]} 1... Nf6 {[%clk 0:02:58.3]} 2. c4 {[%clk 0:03:01.2]}
2... Nc6 {[%clk 0:02:58]} 3. g3 {[%clk 0:02:58.5]} 3... e5 {[%clk 0:02:57.8]} 4.
d5 {[%clk 0:02:58]} 4... Ne7 {[%clk 0:02:58.5]} 5. Bg2 {[%clk 0:02:55.6]} 5...
Ng6 {[%clk 0:02:59.1]} 6. h4 {[%clk 0:02:53.6]} 6... h6 {[%clk 0:02:55.9]} 7. h5
{[%clk 0:02:52.9]} 7... Bb4+ {[%clk 0:02:55.9]} 8. Kf1 {[%clk 0:02:47.7]} 8...
Nf8 {[%clk 0:02:55.4]} 9. a3 {[%clk 0:02:47.7]} 9... Be7 {[%clk 0:02:50.3]} 10.
Nc3 {[%clk 0:02:32.3]} 10... d6 {[%clk 0:02:50.5]} 11. b3 {[%clk 0:02:31.2]}
11... Bg4 {[%clk 0:02:47.2]} 12. Qc2 {[%clk 0:02:28.2]} 12... Bxh5 {[%clk
0:02:44.7]} 13. Nf3 {[%clk 0:02:09.2]} 13... Bg6 {[%clk 0:02:43.4]} 14. e4
{[%clk 0:02:07.5]} 14... N8d7 {[%clk 0:02:36]} 15. Nh4 {[%clk 0:02:07.5]} 15...
a6 {[%clk 0:02:32.6]} 16. Nxg6 {[%clk 0:02:06.9]} 16... fxg6 {[%clk 0:02:32.8]}
17. Bh3 {[%clk 0:02:01.1]} 17... b5 {[%clk 0:02:15.1]} 18. cxb5 {[%clk
0:01:47.5]} 18... axb5 {[%clk 0:02:15.2]} 19. Nxb5 {[%clk 0:01:46.3]} 19... Nc5
{[%clk 0:02:15.8]} 20. b4 {[%clk 0:01:46.3]} 20... Na6 {[%clk 0:02:13.4]} 21.
Qc6+ {[%clk 0:01:31.6]} 21... Kf8 {[%clk 0:02:13.6]} 22. Rb1 {[%clk 0:01:13]}
22... g5 {[%clk 0:02:07]} 23. Bf5 {[%clk 0:01:10.6]} 23... Rg8 {[%clk
0:01:17.4]} 24. Be6 {[%clk 0:01:07.4]} 24... Rh8 {[%clk 0:01:17.7]} 25. Bf5
{[%clk 0:00:52.4]} 25... g4 {[%clk 0:01:17.3]} 26. Be3 {[%clk 0:00:45.3]} 26...
h5 {[%clk 0:01:11.5]} 27. Rc1 {[%clk 0:00:42.9]} 27... Ne8 {[%clk 0:00:58.8]}
28. Kg2 {[%clk 0:00:37.8]} 28... Bg5 {[%clk 0:00:54.8]} 29. Bxg5 {[%clk
0:00:31.6]} 29... Qxg5 {[%clk 0:00:54.7]} 30. Qxa8 {[%clk 0:00:32.1]} 30... h4
{[%clk 0:00:55.2]} 31. Rxh4 {[%clk 0:00:28.9]} 31... Rxh4 {[%clk 0:00:55]} 32.
gxh4 {[%clk 0:00:27.4]} 32... Qxc1 {[%clk 0:00:55.3]} 33. Bg6 {[%clk 0:00:24.9]}
1-0

[Event "*** Titled Tuesday Blitz"]
[Site "Chess.com"]
[Date "2021.02.09"]
[Round "7"]
[White "guillembaches"]
[Black "lamomiablanca"]
[Result "1-0"]
[WhiteElo "2420"]
[BlackElo "2264"]
[TimeControl "180+1"]
[EndTime "11:17:31 PST"]
[Termination "guillembaches won by resignation"]

1. e4 {[%clk 0:03:00.9]} 1... c5 {[%clk 0:02:59.9]} 2. Nf3 {[%clk 0:03:01.1]}
2... Nc6 {[%clk 0:03:00]} 3. d4 {[%clk 0:03:01]} 3... cxd4 {[%clk 0:03:00.9]} 4.
Nxd4 {[%clk 0:03:01.6]} 4... g6 {[%clk 0:03:01.4]} 5. c4 {[%clk 0:03:01.2]} 5...
Nf6 {[%clk 0:03:00.4]} 6. Nc3 {[%clk 0:03:00.4]} 6... d6 {[%clk 0:02:57.3]} 7.
Nc2 {[%clk 0:02:58.6]} 7... Bg7 {[%clk 0:02:54.4]} 8. Be2 {[%clk 0:02:58.8]}
8... O-O {[%clk 0:02:54.4]} 9. O-O {[%clk 0:02:58.8]} 9... Nd7 {[%clk
0:02:51.2]} 10. Be3 {[%clk 0:02:58.4]} 10... Nc5 {[%clk 0:02:50.7]} 11. f3
{[%clk 0:02:57.2]} 11... a5 {[%clk 0:02:47.8]} 12. Qd2 {[%clk 0:02:57.1]} 12...
Be6 {[%clk 0:02:44.7]} 13. Rfd1 {[%clk 0:02:49.7]} 13... Rc8 {[%clk 0:02:44.1]}
14. Rab1 {[%clk 0:02:39.5]} 14... Na6 {[%clk 0:02:39.7]} 15. Nd5 {[%clk
0:02:33.9]} 15... Bxd5 {[%clk 0:02:32.7]} 16. cxd5 {[%clk 0:02:26.4]} 16... Ne5
{[%clk 0:02:27.6]} 17. b3 {[%clk 0:02:21.7]} 17... Nc5 {[%clk 0:02:24.4]} 18.
Nd4 {[%clk 0:02:18]} 18... b6 {[%clk 0:02:20]} 19. Rdc1 {[%clk 0:02:11.8]} 19...
Qd7 {[%clk 0:02:12.6]} 20. Rc2 {[%clk 0:02:04.1]} 20... Rfd8 {[%clk 0:02:08.8]}
21. Rbc1 {[%clk 0:02:01.1]} 21... h5 {[%clk 0:02:02.5]} 22. h3 {[%clk
0:01:56.3]} 22... Qe8 {[%clk 0:01:54.3]} 23. Bb5 {[%clk 0:01:54.3]} 23... Qf8
{[%clk 0:01:52.3]} 24. a3 {[%clk 0:01:38.2]} 24... Bf6 {[%clk 0:01:34.5]} 25. b4
{[%clk 0:01:34.9]} 25... axb4 {[%clk 0:01:33.4]} 26. axb4 {[%clk 0:01:35.8]}
26... Nb7 {[%clk 0:01:27.4]} 27. f4 {[%clk 0:01:33.8]} 27... Rxc2 {[%clk
0:01:19]} 28. Qxc2 {[%clk 0:01:26.7]} 28... Nd7 {[%clk 0:01:18.5]} 29. Qc7
{[%clk 0:01:24.4]} 29... Nbc5 {[%clk 0:01:11.1]} 30. bxc5 {[%clk 0:01:18.4]}
30... Nxc5 {[%clk 0:01:12]} 31. e5 {[%clk 0:01:08]} 31... Bg7 {[%clk 0:01:09]}
32. Nc6 {[%clk 0:01:04.4]} 32... Rd7 {[%clk 0:01:01.2]} 33. Qxb6 {[%clk
0:00:53.7]} 33... Rb7 {[%clk 0:00:59.6]} 34. Qa5 {[%clk 0:00:47.1]} 34... Nb3
{[%clk 0:00:51.7]} 35. Qa6 {[%clk 0:00:42.2]} 35... Qc8 {[%clk 0:00:36.8]} 36.
Nxe7+ {[%clk 0:00:40.4]} 1-0

[Event "*** Titled Tuesday Blitz"]
[Site "Chess.com"]
[Date "2021.02.09"]
[Round "7"]
[White "Adham_Fawzy"]
[Black "ChessWarrior7197"]
[Result "0-1"]
[WhiteElo "2775"]
[BlackElo "2957"]
[TimeControl "180+1"]
[EndTime "11:17:34 PST"]
[Termination "ChessWarrior7197 won on time"]

1. e4 {[%clk 0:03:00.9]} 1... c6 {[%clk 0:03:00]} 2. d4 {[%clk 0:02:58]} 2... d5
{[%clk 0:03:00.9]} 3. exd5 {[%clk 0:02:58.9]} 3... cxd5 {[%clk 0:03:01.1]} 4. c4
{[%clk 0:02:59.8]} 4... Nf6 {[%clk 0:03:01.7]} 5. Nc3 {[%clk 0:02:59.7]} 5... e6
{[%clk 0:03:02.2]} 6. c5 {[%clk 0:03:00.2]} 6... g6 {[%clk 0:03:01.7]} 7. Nf3
{[%clk 0:02:59]} 7... Bg7 {[%clk 0:03:02.1]} 8. Bb5+ {[%clk 0:02:52.3]} 8... Bd7
{[%clk 0:03:01.5]} 9. O-O {[%clk 0:02:52.6]} 9... O-O {[%clk 0:03:00.9]} 10. Re1
{[%clk 0:02:51.9]} 10... Bxb5 {[%clk 0:02:55.9]} 11. Nxb5 {[%clk 0:02:52.8]}
11... Nc6 {[%clk 0:02:56.8]} 12. Bf4 {[%clk 0:02:28.5]} 12... Ne4 {[%clk
0:02:54.4]} 13. Nd6 {[%clk 0:02:28.5]} 13... Nxd6 {[%clk 0:02:22.5]} 14. Bxd6
{[%clk 0:02:29.4]} 14... Re8 {[%clk 0:02:23.4]} 15. Qd2 {[%clk 0:02:25.2]} 15...
b6 {[%clk 0:02:19.5]} 16. b4 {[%clk 0:02:20.6]} 16... b5 {[%clk 0:02:19.4]} 17.
a4 {[%clk 0:02:03.6]} 17... a6 {[%clk 0:02:18.2]} 18. Ne5 {[%clk 0:01:57.7]}
18... Bxe5 {[%clk 0:02:18]} 19. dxe5 {[%clk 0:01:52.2]} 19... f6 {[%clk
0:02:18]} 20. axb5 {[%clk 0:01:49.8]} 20... axb5 {[%clk 0:02:16.6]} 21. Rxa8
{[%clk 0:01:50.7]} 21... Qxa8 {[%clk 0:02:17.5]} 22. exf6 {[%clk 0:01:51.3]}
22... Qa7 {[%clk 0:02:07.7]} 23. g4 {[%clk 0:01:30.4]} 23... Qf7 {[%clk
0:02:03.8]} 24. Qf4 {[%clk 0:01:26.3]} 24... e5 {[%clk 0:01:59.1]} 25. Bxe5
{[%clk 0:01:01.9]} 25... d4 {[%clk 0:01:59.4]} 26. Re4 {[%clk 0:00:19.8]} 26...
Qd5 {[%clk 0:01:51.7]} 27. Qh6 {[%clk 0:00:19.8]} 27... Qd7 {[%clk 0:01:41.3]}
28. Bd6 {[%clk 0:00:16.2]} 28... Ra8 {[%clk 0:01:25.4]} 29. h3 {[%clk
0:00:16.3]} 29... Qf7 {[%clk 0:01:23.5]} 30. g5 {[%clk 0:00:12.6]} 30... d3
{[%clk 0:01:21.8]} 31. Re1 {[%clk 0:00:11.8]} 31... d2 {[%clk 0:01:19.1]} 32.
Rd1 {[%clk 0:00:11.6]} 32... Nd4 {[%clk 0:01:19.7]} 33. Kf1 {[%clk 0:00:05.1]}
33... Nf5 {[%clk 0:01:10.1]} 0-1

[Event "*** Titled Tuesday Blitz"]
[Site "Chess.com"]
[Date "2021.02.09"]
[Round "7"]
[White "Susal_De_Silva"]
[Black "federicosellitti"]
[Result "1-0"]
[WhiteElo "2617"]
[BlackElo "2457"]
[TimeControl "180+1"]
[EndTime "11:17:34 PST"]
[Termination "Susal_De_Silva won by resignation"]

1. e4 {[%clk 0:03:00.9]} 1... c5 {[%clk 0:03:00]} 2. Nf3 {[%clk 0:03:00.9]} 2...
Nf6 {[%clk 0:02:59.6]} 3. e5 {[%clk 0:02:58.2]} 3... Nd5 {[%clk 0:02:59.4]} 4.
c3 {[%clk 0:02:54.6]} 4... Nc6 {[%clk 0:02:59.1]} 5. d4 {[%clk 0:02:52.7]} 5...
cxd4 {[%clk 0:03:00]} 6. cxd4 {[%clk 0:02:53.6]} 6... e6 {[%clk 0:02:59.6]} 7.
Nc3 {[%clk 0:02:52.3]} 7... Nxc3 {[%clk 0:02:59.3]} 8. bxc3 {[%clk 0:02:53.2]}
8... d6 {[%clk 0:03:00.2]} 9. exd6 {[%clk 0:02:52.9]} 9... Bxd6 {[%clk
0:02:59.2]} 10. Bd3 {[%clk 0:02:53.5]} 10... b6 {[%clk 0:02:57.3]} 11. O-O
{[%clk 0:02:53.7]} 11... Bb7 {[%clk 0:02:56.6]} 12. Ng5 {[%clk 0:02:51.4]} 12...
h6 {[%clk 0:02:48.8]} 13. Qh5 {[%clk 0:02:45.5]} 13... Qe7 {[%clk 0:02:49.2]}
14. Nxf7 {[%clk 0:02:43]} 14... O-O {[%clk 0:02:17.1]} 15. Qg6 {[%clk
0:02:29.1]} 15... Bxh2+ {[%clk 0:02:13.4]} 16. Kh1 {[%clk 0:02:19.1]} 16... Bf4
{[%clk 0:01:58]} 17. Bxf4 {[%clk 0:01:56]} 17... Qh4+ {[%clk 0:01:58.2]} 18. Bh2
{[%clk 0:01:51.1]} 18... Ne7 {[%clk 0:01:58.5]} 19. Qxe6 {[%clk 0:01:33.9]}
19... Rxf7 {[%clk 0:01:59]} 20. Bc4 {[%clk 0:01:31.2]} 20... Qf6 {[%clk
0:01:59.3]} 21. Qxf7+ {[%clk 0:01:30.2]} 21... Qxf7 {[%clk 0:01:58.5]} 22. Bxf7+
{[%clk 0:01:31.1]} 22... Kxf7 {[%clk 0:01:59.4]} 23. c4 {[%clk 0:01:30.9]} 23...
Ba6 {[%clk 0:01:55.8]} 24. Rfc1 {[%clk 0:01:28.4]} 24... Rc8 {[%clk 0:01:56.3]}
25. c5 {[%clk 0:01:27.8]} 25... bxc5 {[%clk 0:01:55.2]} 26. Rxc5 {[%clk
0:01:28.7]} 26... Rxc5 {[%clk 0:01:49.9]} 27. dxc5 {[%clk 0:01:29.6]} 27... Bb7
{[%clk 0:01:50.8]} 28. Rb1 {[%clk 0:01:27.6]} 28... Bc6 {[%clk 0:01:49.9]} 29.
Bd6 {[%clk 0:01:26.3]} 29... Nd5 {[%clk 0:01:47.2]} 30. Rb3 {[%clk 0:01:24.4]}
30... Ke6 {[%clk 0:01:47.2]} 31. Ra3 {[%clk 0:01:19.1]} 31... g6 {[%clk
0:01:46.8]} 32. Rxa7 {[%clk 0:01:17.4]} 32... Nc3 {[%clk 0:01:46.5]} 33. Rh7
{[%clk 0:01:10.6]} 33... h5 {[%clk 0:01:43.7]} 34. a3 {[%clk 0:01:08.6]} 34...
Nb5 {[%clk 0:01:41]} 35. Re7+ {[%clk 0:01:05]} 35... Kd5 {[%clk 0:01:41.7]} 36.
Re5+ {[%clk 0:01:03]} 36... Kc4 {[%clk 0:01:41.7]} 37. Re6 {[%clk 0:01:01.8]}
37... Nxa3 {[%clk 0:01:39.8]} 38. Rxg6 {[%clk 0:01:02.2]} 38... Nc2 {[%clk
0:01:35.6]} 39. Rg5 {[%clk 0:01:02]} 39... Ne1 {[%clk 0:01:34.2]} 40. Kg1 {[%clk
0:01:01.9]} 40... h4 {[%clk 0:01:30.9]} 41. Kh2 {[%clk 0:00:57.6]} 41... Nd3
{[%clk 0:01:27.5]} 42. f3 {[%clk 0:00:55.8]} 42... Bd7 {[%clk 0:01:19.8]} 43.
Rh5 {[%clk 0:00:48.8]} 43... h3 {[%clk 0:01:17.1]} 44. g4 {[%clk 0:00:48.5]}
44... Be8 {[%clk 0:01:15.7]} 45. Rf5 {[%clk 0:00:46.6]} 45... Bd7 {[%clk
0:01:15.2]} 46. Rf6 {[%clk 0:00:44.7]} 46... Nf2 {[%clk 0:01:13.1]} 47. Bg3
{[%clk 0:00:44.3]} 47... Nd1 {[%clk 0:01:10.3]} 48. c6 {[%clk 0:00:42.7]} 48...
Bc8 {[%clk 0:01:09.8]} 49. c7 {[%clk 0:00:43.1]} 49... Ne3 {[%clk 0:01:09.9]}
50. Kxh3 {[%clk 0:00:41.7]} 1-0

[Event "*** Titled Tuesday Blitz"]
[Site "Chess.com"]
[Date "2021.02.09"]
[Round "7"]
[White "Fighterman91"]
[Black "KeithArkell"]
[Result "0-1"]
[WhiteElo "2649"]
[BlackElo "2504"]
[TimeControl "180+1"]
[EndTime "11:17:35 PST"]
[Termination "KeithArkell won by resignation"]

1. e4 {[%clk 0:03:00.9]} 1... c6 {[%clk 0:02:56.7]} 2. Nf3 {[%clk 0:02:57]} 2...
d5 {[%clk 0:02:56.7]} 3. d3 {[%clk 0:02:57.9]} 3... g6 {[%clk 0:02:50.4]} 4. e5
{[%clk 0:02:55.6]} 4... Bg4 {[%clk 0:02:49.3]} 5. d4 {[%clk 0:02:53.6]} 5... e6
{[%clk 0:02:47.1]} 6. Nbd2 {[%clk 0:02:50.9]} 6... c5 {[%clk 0:02:44.4]} 7. c3
{[%clk 0:02:46]} 7... Bxf3 {[%clk 0:02:40.6]} 8. Nxf3 {[%clk 0:02:45.8]} 8...
Nc6 {[%clk 0:02:40.6]} 9. Bb5 {[%clk 0:02:39.3]} 9... Qb6 {[%clk 0:02:38.4]} 10.
Qa4 {[%clk 0:02:37.3]} 10... a6 {[%clk 0:02:34.5]} 11. Bxc6+ {[%clk 0:02:34.3]}
11... Qxc6 {[%clk 0:02:34.3]} 12. Qxc6+ {[%clk 0:02:34.8]} 12... bxc6 {[%clk
0:02:35]} 13. Ke2 {[%clk 0:02:29.7]} 13... cxd4 {[%clk 0:02:27.4]} 14. cxd4
{[%clk 0:02:30.3]} 14... c5 {[%clk 0:02:21.4]} 15. Be3 {[%clk 0:02:30.7]} 15...
cxd4 {[%clk 0:02:16.2]} 16. Nxd4 {[%clk 0:02:28.3]} 16... Ne7 {[%clk 0:02:14.8]}
17. Rhc1 {[%clk 0:02:27.2]} 17... Bg7 {[%clk 0:02:14.4]} 18. Rc7 {[%clk
0:02:26.9]} 18... Bxe5 {[%clk 0:02:08.6]} 19. Rb7 {[%clk 0:02:15.6]} 19... Rb8
{[%clk 0:02:01.8]} 20. Rxb8+ {[%clk 0:01:36.7]} 20... Bxb8 {[%clk 0:02:02.7]}
21. Bg5 {[%clk 0:01:27.9]} 21... Kd7 {[%clk 0:01:44]} 22. Bxe7 {[%clk
0:01:24.6]} 22... Kxe7 {[%clk 0:01:43.6]} 23. Rc1 {[%clk 0:01:25.5]} 23... Kd7
{[%clk 0:01:42.9]} 24. Rc3 {[%clk 0:01:12.3]} 24... Be5 {[%clk 0:01:41.7]} 25.
Rd3 {[%clk 0:01:10.9]} 25... Rb8 {[%clk 0:01:38.4]} 26. b3 {[%clk 0:01:10.5]}
26... h5 {[%clk 0:01:32.9]} 27. h4 {[%clk 0:01:06.2]} 27... Rc8 {[%clk
0:01:30.5]} 28. Kd1 {[%clk 0:01:05.9]} 28... Bf4 {[%clk 0:01:30]} 29. Ne2 {[%clk
0:01:01.4]} 29... Be5 {[%clk 0:01:29.8]} 30. f4 {[%clk 0:01:02]} 30... Bf6
{[%clk 0:01:29.7]} 31. g3 {[%clk 0:01:02.9]} 31... Kd6 {[%clk 0:01:30.1]} 32.
Nd4 {[%clk 0:01:03.4]} 32... Bxd4 {[%clk 0:01:24.6]} 33. Rxd4 {[%clk 0:01:03.5]}
33... e5 {[%clk 0:01:19]} 34. Ra4 {[%clk 0:01:04.4]} 34... Rc6 {[%clk
0:01:19.2]} 35. fxe5+ {[%clk 0:01:01.6]} 35... Kxe5 {[%clk 0:01:20.1]} 36. Ke2
{[%clk 0:01:02]} 36... f6 {[%clk 0:01:12.6]} 37. Ke3 {[%clk 0:00:56.7]} 37... g5
{[%clk 0:01:12.6]} 38. Kf2 {[%clk 0:00:55.1]} 38... g4 {[%clk 0:01:06]} 39. Ke3
{[%clk 0:00:51.9]} 39... f5 {[%clk 0:01:06]} 40. Kf2 {[%clk 0:00:51.4]} 40... d4
{[%clk 0:00:57.5]} 41. Ke2 {[%clk 0:00:50.8]} 41... Ke4 {[%clk 0:00:57.5]} 42.
Kd2 {[%clk 0:00:51.2]} 42... f4 {[%clk 0:00:49.5]} 43. gxf4 {[%clk 0:00:51.1]}
43... g3 {[%clk 0:00:50]} 44. Ke2 {[%clk 0:00:50.7]} 44... Rc2+ {[%clk
0:00:49.3]} 45. Kf1 {[%clk 0:00:51.1]} 45... Kf3 {[%clk 0:00:49.5]} 0-1

[Event "*** Titled Tuesday Blitz"]
[Site "Chess.com"]
[Date "2021.02.09"]
[Round "7"]
[White "Piccadilly123"]
[Black "zacachess"]
[Result "0-1"]
[WhiteElo "2180"]
[BlackElo "2410"]
[TimeControl "180+1"]
[EndTime "11:17:35 PST"]
[Termination "zacachess won by checkmate"]

1. e4 {[%clk 0:03:00.9]} 1... c5 {[%clk 0:02:59.9]} 2. Nf3 {[%clk 0:02:59.1]}
2... d6 {[%clk 0:03:00.1]} 3. Bb5+ {[%clk 0:02:59.3]} 3... Nc6 {[%clk
0:02:59.4]} 4. Bxc6+ {[%clk 0:02:58.1]} 4... bxc6 {[%clk 0:02:59.2]} 5. O-O
{[%clk 0:02:58.8]} 5... e5 {[%clk 0:02:59.6]} 6. c3 {[%clk 0:02:58.9]} 6... f5
{[%clk 0:02:59.6]} 7. Re1 {[%clk 0:02:55.6]} 7... fxe4 {[%clk 0:02:54.3]} 8.
Rxe4 {[%clk 0:02:55.6]} 8... Nf6 {[%clk 0:02:54.2]} 9. Re1 {[%clk 0:02:55.1]}
9... Be7 {[%clk 0:02:53.7]} 10. d4 {[%clk 0:02:55.5]} 10... cxd4 {[%clk
0:02:50.9]} 11. cxd4 {[%clk 0:02:55.1]} 11... e4 {[%clk 0:02:51.2]} 12. Bg5
{[%clk 0:02:42.1]} 12... exf3 {[%clk 0:02:27.5]} 13. Bxf6 {[%clk 0:02:41.8]}
13... gxf6 {[%clk 0:02:27.6]} 14. Qxf3 {[%clk 0:02:41.6]} 14... O-O {[%clk
0:02:26.6]} 15. Qxc6 {[%clk 0:02:35.6]} 15... Rb8 {[%clk 0:02:22.3]} 16. Nc3
{[%clk 0:02:33.2]} 16... Bb7 {[%clk 0:02:14.6]} 17. Qc4+ {[%clk 0:02:19.5]}
17... Kh8 {[%clk 0:02:14.5]} 18. Qe6 {[%clk 0:02:16.1]} 18... Re8 {[%clk
0:01:45.9]} 19. Qf7 {[%clk 0:02:02.7]} 19... Bf8 {[%clk 0:00:56.8]} 20. Rxe8
{[%clk 0:01:31.7]} 20... Qxe8 {[%clk 0:00:57.7]} 21. Qxf6+ {[%clk 0:01:31.8]}
21... Bg7 {[%clk 0:00:57.5]} 22. Qxd6 {[%clk 0:01:31.6]} 22... Rd8 {[%clk
0:00:57.3]} 23. Qc7 {[%clk 0:01:19.4]} 23... Rd7 {[%clk 0:00:56.5]} 24. Qg3
{[%clk 0:01:03.5]} 24... Bxd4 {[%clk 0:00:51.6]} 25. h4 {[%clk 0:00:59.3]} 25...
Rg7 {[%clk 0:00:51.1]} 26. Qh3 {[%clk 0:00:49.3]} 26... Rxg2+ {[%clk 0:00:46.7]}
27. Qxg2 {[%clk 0:00:50.2]} 27... Bxg2 {[%clk 0:00:46.3]} 28. Kxg2 {[%clk
0:00:51.1]} 28... Qg6+ {[%clk 0:00:40.6]} 29. Kh2 {[%clk 0:00:48.2]} 29... Bxf2
{[%clk 0:00:32]} 30. Ne2 {[%clk 0:00:46.5]} 30... Qe4 {[%clk 0:00:28.7]} 31. Ng1
{[%clk 0:00:39]} 31... Qxh4+ {[%clk 0:00:27.4]} 32. Kg2 {[%clk 0:00:38.9]} 32...
Qg3+ {[%clk 0:00:27.3]} 33. Kh1 {[%clk 0:00:39.1]} 33... Bxg1 {[%clk 0:00:26.7]}
34. Rxg1 {[%clk 0:00:39.3]} 34... Qh3# {[%clk 0:00:27.1]} 0-1